[Event "December 5 Early 2023"]
[Site "https://www.chess.com"]
[Date "2023.12.05"]
[Round "5"]
[White "Feliz Dotel, Dewar Bienvenido"]
[Black "Martin, Lewis"]
[Result "0-1"]
[Board "200"]
[TimeControl "180+1"]
[WhiteFideId "6402801"]
[BlackFideId "410551"]
[WhiteElo "2087"]
[BlackElo "2258"]
[WhiteTeam "DOM"]
[BlackTeam "ENG"]
[WhiteClock "0:00:05"]
[BlackClock "0:01:58"]

1. d4 {[%clk 0:02:59]}  d5 {[%clk 0:02:59]} 2. e3 {[%clk 0:02:59]}  Nf6 {[%clk 0:02:57]} 3. Nf3 {[%clk 0:02:59]}  Nbd7 {[%clk 0:02:54]} 4. b3 {[%clk 0:02:43]}  g6 {[%clk 0:02:51]} 5. Be2 {[%clk 0:02:40]}  Bg7 {[%clk 0:02:51]} 6. O-O {[%clk 0:02:41]}  O-O {[%clk 0:02:52]} 7. c4 {[%clk 0:02:40]}  dxc4 {[%clk 0:02:49]} 8. bxc4 {[%clk 0:02:40]}  c5 {[%clk 0:02:49]} 9. Nc3 {[%clk 0:02:33]}  cxd4 {[%clk 0:02:46]} 10. exd4 {[%clk 0:02:33]}  b6 {[%clk 0:02:46]} 11. a4 {[%clk 0:02:24]}  Bb7 {[%clk 0:02:45]} 12. a5 {[%clk 0:02:17]}  bxa5 {[%clk 0:02:39]} 13. Qa4 {[%clk 0:02:11]}  Nb6 {[%clk 0:02:37]} 14. Qxa5 {[%clk 0:02:07]}  Bxf3 {[%clk 0:02:37]} 15. Bxf3 {[%clk 0:02:07]}  Nxc4 {[%clk 0:02:33]} 16. Qxd8 {[%clk 0:01:50]}  Raxd8 {[%clk 0:02:34]} 17. Rxa7 {[%clk 0:01:50]}  e6 {[%clk 0:02:31]} 18. Bg5 {[%clk 0:01:36]}  Rxd4 {[%clk 0:02:28]} 19. h3 {[%clk 0:01:01]}  h6 {[%clk 0:02:26]} 20. Bxf6 {[%clk 0:00:55]}  Bxf6 {[%clk 0:02:25]} 21. Ra4 {[%clk 0:00:39]}  Nd2 {[%clk 0:02:21]} 22. Rxd4 {[%clk 0:00:38]}  Bxd4 {[%clk 0:02:22]} 23. Ne4 {[%clk 0:00:35]}  Nxf1 {[%clk 0:02:19]} 24. Kxf1 {[%clk 0:00:35]}  Kg7 {[%clk 0:02:17]} 25. Ke2 {[%clk 0:00:35]}  Rb8 {[%clk 0:02:16]} 26. Kd3 {[%clk 0:00:35]}  e5 {[%clk 0:02:16]} 27. Nd2 {[%clk 0:00:19]}  f5 {[%clk 0:02:13]} 28. Bd5 {[%clk 0:00:19]}  Bxf2 {[%clk 0:02:09]} 29. g4 {[%clk 0:00:18]}  e4+ {[%clk 0:02:08]} 30. Ke2 {[%clk 0:00:16]}  e3 {[%clk 0:02:06]} 31. Nc4 {[%clk 0:00:15]}  f4 {[%clk 0:02:02]} 32. h4 {[%clk 0:00:15]}  Bxh4 {[%clk 0:02:01]} 33. Nd6 {[%clk 0:00:05]}  Rd8 {[%clk 0:01:58]} 0-1

[Event "December 5 Early 2023"]
[Site "https://www.chess.com"]
[Date "2023.12.05"]
[Round "5"]
[White "Minina, Veronika"]
[Black "Besso, Guadalupe"]
[Result "1-0"]
[Board "201"]
[TimeControl "180+1"]
[WhiteFideId "4174780"]
[BlackFideId "123161"]
[WhiteElo "2255"]
[BlackElo "2078"]
[WhiteTeam "RUS"]
[BlackTeam "ARG"]
[WhiteClock "0:00:13"]
[BlackClock "0:00:41"]

1. Nf3 {[%clk 0:02:56]}  d5 {[%clk 0:02:56]} 2. g3 {[%clk 0:02:56]}  c6 {[%clk 0:02:56]} 3. c4 {[%clk 0:02:56]}  Nf6 {[%clk 0:02:56]} 4. Bg2 {[%clk 0:02:47]}  e6 {[%clk 0:02:49]} 5. O-O {[%clk 0:02:45]}  Bd6 {[%clk 0:02:49]} 6. d4 {[%clk 0:02:44]}  O-O {[%clk 0:02:49]} 7. Nc3 {[%clk 0:02:33]}  Nbd7 {[%clk 0:02:48]} 8. Qd3 {[%clk 0:02:31]}  dxc4 {[%clk 0:02:47]} 9. Qxc4 {[%clk 0:02:31]}  e5 {[%clk 0:02:47]} 10. dxe5 {[%clk 0:02:23]}  Nxe5 {[%clk 0:02:47]} 11. Nxe5 {[%clk 0:02:23]}  Bxe5 {[%clk 0:02:47]} 12. Bg5 {[%clk 0:02:22]}  Qd4 {[%clk 0:02:43]} 13. Qxd4 {[%clk 0:02:13]}  Bxd4 {[%clk 0:02:43]} 14. Rad1 {[%clk 0:02:11]}  Bxc3 {[%clk 0:02:42]} 15. bxc3 {[%clk 0:02:10]}  Nd7 {[%clk 0:02:42]} 16. Rd6 {[%clk 0:01:54]}  Nb6 {[%clk 0:02:35]} 17. Rfd1 {[%clk 0:01:45]}  Be6 {[%clk 0:02:35]} 18. e3 {[%clk 0:01:10]}  Rfe8 {[%clk 0:02:32]} 19. Bf1 {[%clk 0:01:07]}  Bxa2 {[%clk 0:02:14]} 20. Bd8 {[%clk 0:01:06]}  Nd5 {[%clk 0:02:08]} 21. Ba5 {[%clk 0:00:48]}  b6 {[%clk 0:02:03]} 22. Bb4 {[%clk 0:00:43]}  a5 {[%clk 0:02:00]} 23. Ba3 {[%clk 0:00:34]}  Nxc3 {[%clk 0:01:52]} 24. Rc1 {[%clk 0:00:33]}  Ne4 {[%clk 0:01:49]} 25. Rdxc6 {[%clk 0:00:32]}  Rab8 {[%clk 0:01:43]} 26. f3 {[%clk 0:00:25]}  Nf6 {[%clk 0:01:30]} 27. Bd6 {[%clk 0:00:25]}  Rb7 {[%clk 0:01:23]} 28. Ba6 {[%clk 0:00:23]}  Rd7 {[%clk 0:01:17]} 29. Rxb6 {[%clk 0:00:22]}  h5 {[%clk 0:01:12]} 30. e4 {[%clk 0:00:22]}  a4 {[%clk 0:01:08]} 31. e5 {[%clk 0:00:16]}  Nd5 {[%clk 0:01:07]} 32. Rbc6 {[%clk 0:00:14]}  Bb3 {[%clk 0:00:55]} 33. Bb5 {[%clk 0:00:13]}  Ra8 {[%clk 0:00:54]} 34. Rc8+ {[%clk 0:00:12]}  Rxc8 {[%clk 0:00:54]} 35. Rxc8+ {[%clk 0:00:13]}  Kh7 {[%clk 0:00:49]} 36. Bxd7 {[%clk 0:00:14]}  Nb6 {[%clk 0:00:49]} 37. Bf5+ {[%clk 0:00:12]}  g6 {[%clk 0:00:41]} 38. Rb8 {[%clk 0:00:13]} 1-0

[Event "December 5 Early 2023"]
[Site "https://www.chess.com"]
[Date "2023.12.05"]
[Round "5"]
[White "Ernst, Luca"]
[Black "Sailer, Mike"]
[Result "1-0"]
[Board "202"]
[TimeControl "180+1"]
[WhiteFideId "45117055"]
[BlackFideId "2012901"]
[WhiteElo "2242"]
[BlackElo "2045"]
[WhiteTeam "FRA"]
[BlackTeam "USA"]
[WhiteClock "0:00:05"]
[BlackClock "0:00:00"]

1. d4 {[%clk 0:02:58]}  d5 {[%clk 0:02:59]} 2. Nf3 {[%clk 0:02:58]}  Nf6 {[%clk 0:02:52]} 3. Bf4 {[%clk 0:02:56]}  e6 {[%clk 0:02:53]} 4. e3 {[%clk 0:02:56]}  c5 {[%clk 0:02:53]} 5. Nbd2 {[%clk 0:02:53]}  cxd4 {[%clk 0:02:52]} 6. exd4 {[%clk 0:02:54]}  Bd6 {[%clk 0:02:47]} 7. Bxd6 {[%clk 0:02:50]}  Qxd6 {[%clk 0:02:47]} 8. Bd3 {[%clk 0:02:48]}  b6 {[%clk 0:02:32]} 9. Ne5 {[%clk 0:02:43]}  O-O {[%clk 0:02:30]} 10. O-O {[%clk 0:02:42]}  Ba6 {[%clk 0:02:30]} 11. Qe2 {[%clk 0:02:32]}  Bxd3 {[%clk 0:02:29]} 12. Qxd3 {[%clk 0:02:33]}  Nc6 {[%clk 0:02:21]} 13. Rfe1 {[%clk 0:02:15]}  Rac8 {[%clk 0:01:57]} 14. c3 {[%clk 0:02:13]}  Na5 {[%clk 0:01:54]} 15. Re3 {[%clk 0:01:56]}  Nc4 {[%clk 0:01:44]} 16. Ndxc4 {[%clk 0:01:37]}  dxc4 {[%clk 0:01:39]} 17. Nxc4 {[%clk 0:01:22]}  Qd5 {[%clk 0:01:20]} 18. Ne5 {[%clk 0:01:10]}  Rfd8 {[%clk 0:01:18]} 19. a4 {[%clk 0:00:43]}  Qb3 {[%clk 0:00:55]} 20. Qe2 {[%clk 0:00:35]}  Nd5 {[%clk 0:00:49]} 21. Rg3 {[%clk 0:00:33]}  Nf4 {[%clk 0:00:40]} 22. Qg4 {[%clk 0:00:32]}  Ng6 {[%clk 0:00:40]} 23. Nxg6 {[%clk 0:00:28]}  hxg6 {[%clk 0:00:38]} 24. Qe2 {[%clk 0:00:22]}  Rc4 {[%clk 0:00:38]} 25. a5 {[%clk 0:00:17]}  b5 {[%clk 0:00:35]} 26. h4 {[%clk 0:00:10]}  b4 {[%clk 0:00:34]} 27. cxb4 {[%clk 0:00:10]}  Qxb4 {[%clk 0:00:34]} 28. b3 {[%clk 0:00:08]}  Rcxd4 {[%clk 0:00:31]} 29. h5 {[%clk 0:00:06]}  Rd2 {[%clk 0:00:27]} 30. Qg4 {[%clk 0:00:05]}  Qxg4 {[%clk 0:00:21]} 31. Rxg4 {[%clk 0:00:06]}  gxh5 {[%clk 0:00:18]} 32. Rb4 {[%clk 0:00:06]}  Rd1+ {[%clk 0:00:10]} 33. Rxd1 {[%clk 0:00:05]}  Rxd1+ {[%clk 0:00:11]} 34. Kh2 {[%clk 0:00:06]}  Ra1 {[%clk 0:00:09]} 35. Rb8+ {[%clk 0:00:05]}  Kh7 {[%clk 0:00:09]} 36. b4 {[%clk 0:00:05]}  e5 {[%clk 0:00:08]} 37. Rb7 {[%clk 0:00:05]}  a6 {[%clk 0:00:07]} 38. Rxf7 {[%clk 0:00:04]}  Ra4 {[%clk 0:00:08]} 39. Rf5 {[%clk 0:00:03]}  Rxb4 {[%clk 0:00:06]} 40. Rxh5+ {[%clk 0:00:04]}  Kg6 {[%clk 0:00:06]} 41. Rxe5 {[%clk 0:00:05]}  Kf6 {[%clk 0:00:07]} 42. Rc5 {[%clk 0:00:05]}  Ke6 {[%clk 0:00:06]} 43. Rc6+ {[%clk 0:00:05]}  Kd5 {[%clk 0:00:06]} 44. Rxa6 {[%clk 0:00:06]}  g5 {[%clk 0:00:06]} 45. Rg6 {[%clk 0:00:06]}  Ke4 {[%clk 0:00:05]} 46. Rxg5 {[%clk 0:00:06]}  Kf4 {[%clk 0:00:06]} 47. Rc5 {[%clk 0:00:05]}  Ra4 {[%clk 0:00:06]} 48. Kh3 {[%clk 0:00:04]}  Ra3+ {[%clk 0:00:05]} 49. g3+ {[%clk 0:00:04]}  Kf3 {[%clk 0:00:06]} 50. Rf5+ {[%clk 0:00:04]}  Ke2 {[%clk 0:00:06]} 51. Kh4 {[%clk 0:00:05]}  Ra4+ {[%clk 0:00:06]} 52. g4 {[%clk 0:00:05]}  Kf1 {[%clk 0:00:05]} 53. f4 {[%clk 0:00:05]}  Kg2 {[%clk 0:00:06]} 54. g5 {[%clk 0:00:05]}  Kf3 {[%clk 0:00:06]} 55. g6 {[%clk 0:00:05]}  Ra1 {[%clk 0:00:05]} 56. Kg5 {[%clk 0:00:04]}  Rg1+ {[%clk 0:00:04]} 57. Kf6 {[%clk 0:00:05]}  Ke4 {[%clk 0:00:04]} 58. g7 {[%clk 0:00:03]}  Rxg7 {[%clk 0:00:04]} 59. Kxg7 {[%clk 0:00:04]}  Kxf5 {[%clk 0:00:04]} 60. a6 {[%clk 0:00:05]}  Kxf4 {[%clk 0:00:00]} 61. a7 {[%clk 0:00:05]} 1-0

[Event "December 5 Early 2023"]
[Site "https://www.chess.com"]
[Date "2023.12.05"]
[Round "5"]
[White "Garcia Correa, Jose Ricardo"]
[Black "Nikulina, Alena"]
[Result "1-0"]
[Board "203"]
[TimeControl "180+1"]
[WhiteFideId "5101832"]
[BlackFideId "4172051"]
[WhiteElo "2231"]
[BlackElo "2029"]
[WhiteTeam "MEX"]
[BlackTeam "RUS"]
[WhiteClock "0:01:27"]
[BlackClock "0:00:06"]

1. e4 {[%clk 0:03:00]}  c5 {[%clk 0:02:59]} 2. Nf3 {[%clk 0:03:00]}  e6 {[%clk 0:02:59]} 3. d4 {[%clk 0:03:01]}  cxd4 {[%clk 0:02:59]} 4. Nxd4 {[%clk 0:03:02]}  Nf6 {[%clk 0:03:00]} 5. Nc3 {[%clk 0:03:02]}  Nc6 {[%clk 0:03:00]} 6. Nxc6 {[%clk 0:03:02]}  bxc6 {[%clk 0:03:01]} 7. Bd3 {[%clk 0:03:03]}  e5 {[%clk 0:02:55]} 8. O-O {[%clk 0:03:02]}  Be7 {[%clk 0:02:52]} 9. f4 {[%clk 0:03:02]}  d6 {[%clk 0:02:43]} 10. f5 {[%clk 0:03:02]}  d5 {[%clk 0:02:40]} 11. Qf3 {[%clk 0:03:00]}  d4 {[%clk 0:02:36]} 12. Ne2 {[%clk 0:02:58]}  g6 {[%clk 0:02:23]} 13. Qg3 {[%clk 0:02:56]}  gxf5 {[%clk 0:02:09]} 14. Qxe5 {[%clk 0:02:55]}  Rg8 {[%clk 0:01:53]} 15. exf5 {[%clk 0:02:48]}  Ng4 {[%clk 0:01:16]} 16. Qe4 {[%clk 0:02:30]}  Qd6 {[%clk 0:00:42]} 17. Bf4 {[%clk 0:02:27]}  Qf6 {[%clk 0:00:42]} 18. Nxd4 {[%clk 0:02:18]}  Kf8 {[%clk 0:00:34]} 19. h3 {[%clk 0:02:02]}  Bc5 {[%clk 0:00:33]} 20. c3 {[%clk 0:02:02]}  Nh6 {[%clk 0:00:26]} 21. Be5 {[%clk 0:02:01]}  Qg5 {[%clk 0:00:23]} 22. Kh1 {[%clk 0:01:52]}  Nxf5 {[%clk 0:00:20]} 23. Nxf5 {[%clk 0:01:52]}  Bxf5 {[%clk 0:00:14]} 24. Rxf5 {[%clk 0:01:51]}  Qg6 {[%clk 0:00:12]} 25. Raf1 {[%clk 0:01:49]}  Re8 {[%clk 0:00:10]} 26. Rxf7+ {[%clk 0:01:46]}  Qxf7 {[%clk 0:00:10]} 27. Rxf7+ {[%clk 0:01:46]}  Kxf7 {[%clk 0:00:11]} 28. Bc4+ {[%clk 0:01:46]}  Kf8 {[%clk 0:00:10]} 29. Qf5+ {[%clk 0:01:43]}  Ke7 {[%clk 0:00:10]} 30. Qf6+ {[%clk 0:01:44]}  Kd7 {[%clk 0:00:10]} 31. Qf5+ {[%clk 0:01:38]}  Kd8 {[%clk 0:00:10]} 32. Bf6+ {[%clk 0:01:38]}  Kc7 {[%clk 0:00:09]} 33. Bxg8 {[%clk 0:01:36]}  Bd6 {[%clk 0:00:09]} 34. Bh4 {[%clk 0:01:33]}  Rf8 {[%clk 0:00:07]} 35. Qxf8 {[%clk 0:01:28]}  Bxf8 {[%clk 0:00:07]} 36. Bxh7 {[%clk 0:01:29]}  Bg7 {[%clk 0:00:06]} 37. Be4 {[%clk 0:01:27]} 1-0

[Event "December 5 Early 2023"]
[Site "https://www.chess.com"]
[Date "2023.12.05"]
[Round "5"]
[White "Omariev, Maksim"]
[Black "Petersson, Kjell"]
[Result "1-0"]
[Board "204"]
[TimeControl "180+1"]
[WhiteFideId "4193423"]
[BlackFideId "1705148"]
[WhiteElo "2472"]
[BlackElo "2170"]
[WhiteTeam "RUS"]
[BlackTeam "SWE"]
[WhiteClock "0:00:13"]
[BlackClock "0:00:25"]

1. g4 {[%clk 0:02:29]}  e5 {[%clk 0:02:40]} 2. Bg2 {[%clk 0:02:26]}  h5 {[%clk 0:02:41]} 3. gxh5 {[%clk 0:02:25]}  Rxh5 {[%clk 0:02:40]} 4. d4 {[%clk 0:02:24]}  d6 {[%clk 0:02:20]} 5. e4 {[%clk 0:02:11]}  Nf6 {[%clk 0:02:16]} 6. dxe5 {[%clk 0:02:09]}  dxe5 {[%clk 0:02:15]} 7. Qxd8+ {[%clk 0:02:10]}  Kxd8 {[%clk 0:02:16]} 8. Nc3 {[%clk 0:02:06]}  c6 {[%clk 0:02:10]} 9. Nge2 {[%clk 0:01:56]}  Na6 {[%clk 0:02:06]} 10. Be3 {[%clk 0:01:54]}  Be6 {[%clk 0:01:53]} 11. O-O-O+ {[%clk 0:01:52]}  Kc7 {[%clk 0:01:53]} 12. Ng3 {[%clk 0:01:50]}  Rh8 {[%clk 0:01:47]} 13. a3 {[%clk 0:01:48]}  Bc5 {[%clk 0:01:44]} 14. Nf1 {[%clk 0:01:44]}  Bh3 {[%clk 0:01:37]} 15. Rg1 {[%clk 0:01:41]}  g6 {[%clk 0:01:34]} 16. b4 {[%clk 0:01:38]}  Bd6 {[%clk 0:01:23]} 17. Nd2 {[%clk 0:01:32]}  Bxg2 {[%clk 0:01:18]} 18. Rxg2 {[%clk 0:01:33]}  Rh4 {[%clk 0:01:17]} 19. Nc4 {[%clk 0:01:32]}  Nxe4 {[%clk 0:01:07]} 20. Nxe4 {[%clk 0:01:29]}  Bxb4 {[%clk 0:01:01]} 21. f3 {[%clk 0:00:50]}  Be7 {[%clk 0:00:57]} 22. Nxe5 {[%clk 0:00:47]}  f5 {[%clk 0:00:49]} 23. Rd7+ {[%clk 0:00:22]}  Kc8 {[%clk 0:00:50]} 24. Rxe7 {[%clk 0:00:22]}  fxe4 {[%clk 0:00:40]} 25. Rxg6 {[%clk 0:00:21]}  Rh8 {[%clk 0:00:40]} 26. fxe4 {[%clk 0:00:18]}  Nc7 {[%clk 0:00:32]} 27. Nc4 {[%clk 0:00:15]}  Nb5 {[%clk 0:00:30]} 28. Rgg7 {[%clk 0:00:14]}  b6 {[%clk 0:00:28]} 29. Bf4 {[%clk 0:00:14]}  a5 {[%clk 0:00:27]} 30. Nxb6+ {[%clk 0:00:13]}  Kd8 {[%clk 0:00:25]} 31. Nxa8 {[%clk 0:00:13]} 1-0

[Event "December 5 Early 2023"]
[Site "https://www.chess.com"]
[Date "2023.12.05"]
[Round "5"]
[White "Mende, Andreas"]
[Black "Fernandez Hernandez, Gerardo"]
[Result "1-0"]
[Board "210"]
[TimeControl "180+1"]
[WhiteFideId "4631102"]
[BlackFideId "2207400"]
[WhiteElo "2088"]
[BlackElo "2229"]
[WhiteTeam "GER"]
[BlackTeam "ESP"]
[WhiteClock "0:00:46"]
[BlackClock "0:00:01"]

1. c4 {[%clk 0:02:59]}  e5 {[%clk 0:02:59]} 2. g3 {[%clk 0:02:59]}  Nc6 {[%clk 0:02:59]} 3. Nc3 {[%clk 0:02:56]}  g6 {[%clk 0:02:58]} 4. Bg2 {[%clk 0:02:55]}  Bg7 {[%clk 0:02:57]} 5. d3 {[%clk 0:02:55]}  d6 {[%clk 0:02:57]} 6. e4 {[%clk 0:02:54]}  f5 {[%clk 0:02:56]} 7. Nge2 {[%clk 0:02:54]}  Nf6 {[%clk 0:02:56]} 8. O-O {[%clk 0:02:54]}  O-O {[%clk 0:02:56]} 9. Nd5 {[%clk 0:02:54]}  Nh5 {[%clk 0:02:42]} 10. Be3 {[%clk 0:02:51]}  f4 {[%clk 0:02:39]} 11. gxf4 {[%clk 0:02:46]}  exf4 {[%clk 0:02:22]} 12. Nexf4 {[%clk 0:02:36]}  Nxf4 {[%clk 0:02:23]} 13. Nxf4 {[%clk 0:02:25]}  Bxb2 {[%clk 0:02:24]} 14. Rb1 {[%clk 0:02:24]}  Bg7 {[%clk 0:02:23]} 15. Nd5 {[%clk 0:02:24]}  Nd4 {[%clk 0:02:20]} 16. f4 {[%clk 0:02:19]}  c6 {[%clk 0:02:12]} 17. Nb4 {[%clk 0:02:18]}  a5 {[%clk 0:02:05]} 18. Nc2 {[%clk 0:02:18]}  Nxc2 {[%clk 0:01:53]} 19. Qxc2 {[%clk 0:02:17]}  Qe7 {[%clk 0:01:47]} 20. d4 {[%clk 0:02:16]}  Be6 {[%clk 0:01:40]} 21. d5 {[%clk 0:02:12]}  Bf7 {[%clk 0:01:38]} 22. Qd3 {[%clk 0:02:02]}  c5 {[%clk 0:01:36]} 23. Rb6 {[%clk 0:01:58]}  a4 {[%clk 0:01:26]} 24. Rfb1 {[%clk 0:01:57]}  Ra7 {[%clk 0:01:26]} 25. R6b5 {[%clk 0:01:48]}  a3 {[%clk 0:01:17]} 26. e5 {[%clk 0:01:45]}  dxe5 {[%clk 0:01:10]} 27. Bxc5 {[%clk 0:01:45]}  e4 {[%clk 0:00:59]} 28. Qe3 {[%clk 0:01:38]}  Qd7 {[%clk 0:00:47]} 29. Bxa7 {[%clk 0:01:35]}  Bb2 {[%clk 0:00:46]} 30. Bd4 {[%clk 0:01:29]}  Ra8 {[%clk 0:00:47]} 31. Bxb2 {[%clk 0:01:28]}  axb2 {[%clk 0:00:46]} 32. R1xb2 {[%clk 0:01:28]}  Ra4 {[%clk 0:00:46]} 33. Qxe4 {[%clk 0:01:26]}  Qg4 {[%clk 0:00:45]} 34. Qf3 {[%clk 0:01:23]}  Qf5 {[%clk 0:00:44]} 35. Rxb7 {[%clk 0:01:19]}  Rxc4 {[%clk 0:00:40]} 36. Qe3 {[%clk 0:01:08]}  Rxf4 {[%clk 0:00:25]} 37. d6 {[%clk 0:00:58]}  Bd5 {[%clk 0:00:09]} 38. Qe8+ {[%clk 0:00:53]}  Qf8 {[%clk 0:00:08]} 39. Bxd5+ {[%clk 0:00:53]}  Rf7 {[%clk 0:00:07]} 40. Bxf7+ {[%clk 0:00:49]}  Kg7 {[%clk 0:00:06]} 41. Qxf8+ {[%clk 0:00:47]}  Kxf8 {[%clk 0:00:06]} 42. Re2 {[%clk 0:00:45]}  h5 {[%clk 0:00:03]} 43. Bxg6 {[%clk 0:00:45]}  h4 {[%clk 0:00:01]} 44. Re8# {[%clk 0:00:46]} 1-0

[Event "December 5 Early 2023"]
[Site "https://www.chess.com"]
[Date "2023.12.05"]
[Round "5"]
[White "Fernandez Sanchez, Mario Andres"]
[Black "Smirnov, Timofey"]
[Result "1-0"]
[Board "211"]
[TimeControl "180+1"]
[WhiteFideId "6501621"]
[BlackFideId "24176427"]
[WhiteElo "2227"]
[BlackElo "2040"]
[WhiteTeam "CRC"]
[BlackTeam "RUS"]
[WhiteClock "0:00:24"]
[BlackClock "0:00:00"]

1. d4 {[%clk 0:03:00]}  d5 {[%clk 0:02:55]} 2. Bf4 {[%clk 0:03:01]}  Bf5 {[%clk 0:02:54]} 3. c4 {[%clk 0:03:01]}  e6 {[%clk 0:02:54]} 4. Qb3 {[%clk 0:02:55]}  Nc6 {[%clk 0:02:46]} 5. e3 {[%clk 0:02:38]}  Nb4 {[%clk 0:02:39]} 6. Na3 {[%clk 0:02:38]}  Nf6 {[%clk 0:02:21]} 7. Nf3 {[%clk 0:02:37]}  Be7 {[%clk 0:02:14]} 8. Rc1 {[%clk 0:02:30]}  c6 {[%clk 0:01:55]} 9. Be2 {[%clk 0:02:29]}  O-O {[%clk 0:01:54]} 10. O-O {[%clk 0:02:25]}  a5 {[%clk 0:01:54]} 11. Nb1 {[%clk 0:02:19]}  a4 {[%clk 0:01:46]} 12. Qd1 {[%clk 0:02:13]}  Nxa2 {[%clk 0:01:44]} 13. Nh4 {[%clk 0:02:02]}  Nxc1 {[%clk 0:01:31]} 14. Qxc1 {[%clk 0:02:03]}  Bg6 {[%clk 0:01:23]} 15. Nxg6 {[%clk 0:01:59]}  hxg6 {[%clk 0:01:23]} 16. Nc3 {[%clk 0:01:59]}  Ne4 {[%clk 0:01:17]} 17. Nxe4 {[%clk 0:01:59]}  dxe4 {[%clk 0:01:17]} 18. Qc2 {[%clk 0:01:59]}  Bd6 {[%clk 0:01:06]} 19. Qxe4 {[%clk 0:01:57]}  Bxf4 {[%clk 0:01:05]} 20. Qxf4 {[%clk 0:01:58]}  Qb8 {[%clk 0:01:01]} 21. Qg4 {[%clk 0:01:52]}  Qd6 {[%clk 0:00:51]} 22. Qe4 {[%clk 0:01:33]}  Rfe8 {[%clk 0:00:42]} 23. Bf3 {[%clk 0:01:29]}  e5 {[%clk 0:00:38]} 24. c5 {[%clk 0:01:24]}  Qe6 {[%clk 0:00:33]} 25. d5 {[%clk 0:01:24]}  cxd5 {[%clk 0:00:33]} 26. Qxd5 {[%clk 0:01:25]}  Qxd5 {[%clk 0:00:33]} 27. Bxd5 {[%clk 0:01:25]}  Rab8 {[%clk 0:00:32]} 28. Ra1 {[%clk 0:01:22]}  Red8 {[%clk 0:00:30]} 29. e4 {[%clk 0:01:20]}  Rbc8 {[%clk 0:00:22]} 30. Rxa4 {[%clk 0:01:16]}  Rxc5 {[%clk 0:00:21]} 31. g3 {[%clk 0:01:13]}  Rb5 {[%clk 0:00:20]} 32. b3 {[%clk 0:01:12]}  Rc8 {[%clk 0:00:17]} 33. Ra7 {[%clk 0:01:10]}  Rc7 {[%clk 0:00:17]} 34. Kg2 {[%clk 0:01:10]}  Kh7 {[%clk 0:00:15]} 35. h4 {[%clk 0:01:08]}  f6 {[%clk 0:00:15]} 36. Ra8 {[%clk 0:01:07]}  Rc3 {[%clk 0:00:12]} 37. Bg8+ {[%clk 0:01:07]}  Kh6 {[%clk 0:00:11]} 38. Bc4 {[%clk 0:01:07]}  g5 {[%clk 0:00:05]} 39. hxg5+ {[%clk 0:00:54]}  Kxg5 {[%clk 0:00:04]} 40. Bxb5 {[%clk 0:00:54]}  Rxb3 {[%clk 0:00:05]} 41. Bd7 {[%clk 0:00:51]}  b5 {[%clk 0:00:04]} 42. Rb8 {[%clk 0:00:52]}  b4 {[%clk 0:00:04]} 43. Be6 {[%clk 0:00:52]}  Rb2 {[%clk 0:00:04]} 44. Bd5 {[%clk 0:00:52]}  g6 {[%clk 0:00:02]} 45. Be6 {[%clk 0:00:48]}  Rb1 {[%clk 0:00:03]} 46. Kf3 {[%clk 0:00:44]}  Rb2 {[%clk 0:00:03]} 47. Bf7 {[%clk 0:00:41]}  Rb1 {[%clk 0:00:03]} 48. Rg8 {[%clk 0:00:41]}  Kh6 {[%clk 0:00:02]} 49. Bxg6 {[%clk 0:00:33]}  b3 {[%clk 0:00:01]} 50. Bf7 {[%clk 0:00:30]}  Kh7 {[%clk 0:00:01]} 51. Rb8 {[%clk 0:00:29]}  b2 {[%clk 0:00:01]} 52. Be6 {[%clk 0:00:28]}  Kg7 {[%clk 0:00:02]} 53. Rb7+ {[%clk 0:00:27]}  Kg6 {[%clk 0:00:02]} 54. Kg4 {[%clk 0:00:27]}  f5+ {[%clk 0:00:02]} 55. exf5+ {[%clk 0:00:27]}  Kf6 {[%clk 0:00:03]} 56. Rb6 {[%clk 0:00:25]}  Ke7 {[%clk 0:00:02]} 57. f3 {[%clk 0:00:25]}  Kf6 {[%clk 0:00:00]} 58. Ba2+ {[%clk 0:00:24]} 1-0

[Event "December 5 Early 2023"]
[Site "https://www.chess.com"]
[Date "2023.12.05"]
[Round "5"]
[White "Verbin, Valentina"]
[Black "Subramanian, Anusha"]
[Result "1-0"]
[Board "212"]
[TimeControl "180+1"]
[WhiteFideId "13905910"]
[BlackFideId "477710"]
[WhiteElo "2211"]
[BlackElo "2037"]
[WhiteTeam "MDA"]
[BlackTeam "ENG"]
[WhiteClock "0:00:07"]
[BlackClock "0:00:00"]

1. e4 {[%clk 0:03:00]}  c6 {[%clk 0:02:55]} 2. c4 {[%clk 0:02:55]}  d5 {[%clk 0:02:55]} 3. exd5 {[%clk 0:02:55]}  cxd5 {[%clk 0:02:56]} 4. cxd5 {[%clk 0:02:56]}  Nf6 {[%clk 0:02:55]} 5. Qa4+ {[%clk 0:02:55]}  Bd7 {[%clk 0:02:52]} 6. Qb3 {[%clk 0:02:55]}  Qc7 {[%clk 0:02:51]} 7. Nc3 {[%clk 0:02:54]}  a6 {[%clk 0:02:41]} 8. Nf3 {[%clk 0:02:46]}  e6 {[%clk 0:02:27]} 9. dxe6 {[%clk 0:02:44]}  Bxe6 {[%clk 0:02:27]} 10. Qc2 {[%clk 0:02:37]}  Bd6 {[%clk 0:02:23]} 11. Be2 {[%clk 0:02:31]}  O-O {[%clk 0:02:22]} 12. O-O {[%clk 0:02:30]}  Nc6 {[%clk 0:02:21]} 13. a3 {[%clk 0:02:30]}  Rfe8 {[%clk 0:02:20]} 14. d4 {[%clk 0:02:26]}  Bg4 {[%clk 0:02:14]} 15. d5 {[%clk 0:02:05]}  Bxf3 {[%clk 0:02:05]} 16. Bxf3 {[%clk 0:02:06]}  Bxh2+ {[%clk 0:01:58]} 17. Kh1 {[%clk 0:02:06]}  Nd4 {[%clk 0:01:58]} 18. Qd1 {[%clk 0:02:05]}  Nxf3 {[%clk 0:01:58]} 19. Qxf3 {[%clk 0:02:05]}  Be5 {[%clk 0:01:56]} 20. Bg5 {[%clk 0:02:04]}  Bxc3 {[%clk 0:01:52]} 21. bxc3 {[%clk 0:02:04]}  Nd7 {[%clk 0:01:26]} 22. Rac1 {[%clk 0:01:49]}  Qe5 {[%clk 0:01:11]} 23. Bf4 {[%clk 0:01:44]}  Qf6 {[%clk 0:01:10]} 24. c4 {[%clk 0:01:40]}  Ne5 {[%clk 0:00:53]} 25. Qg3 {[%clk 0:01:37]}  Ng6 {[%clk 0:00:48]} 26. Bg5 {[%clk 0:01:35]}  Qf5 {[%clk 0:00:46]} 27. d6 {[%clk 0:01:30]}  f6 {[%clk 0:00:41]} 28. Be3 {[%clk 0:01:26]}  Re4 {[%clk 0:00:35]} 29. Kg1 {[%clk 0:01:09]}  Qh5 {[%clk 0:00:26]} 30. Rfd1 {[%clk 0:00:13]}  Rh4 {[%clk 0:00:25]} 31. f3 {[%clk 0:00:14]}  Rh1+ {[%clk 0:00:10]} 32. Kf2 {[%clk 0:00:14]}  Rxd1 {[%clk 0:00:10]} 33. Rxd1 {[%clk 0:00:15]}  Ne5 {[%clk 0:00:10]} 34. d7 {[%clk 0:00:14]}  Rd8 {[%clk 0:00:09]} 35. Bb6 {[%clk 0:00:03]}  Rxd7 {[%clk 0:00:07]} 36. Rxd7 {[%clk 0:00:04]}  Nxd7 {[%clk 0:00:08]} 37. Qc7 {[%clk 0:00:04]}  Qf7 {[%clk 0:00:05]} 38. Qxb7 {[%clk 0:00:02]}  Ne5 {[%clk 0:00:02]} 39. Qxf7+ {[%clk 0:00:03]}  Nxf7 {[%clk 0:00:03]} 40. c5 {[%clk 0:00:03]}  Ne5 {[%clk 0:00:03]} 41. f4 {[%clk 0:00:04]}  Nd3+ {[%clk 0:00:03]} 42. Ke3 {[%clk 0:00:04]}  Nb2 {[%clk 0:00:02]} 43. Kd4 {[%clk 0:00:04]}  Na4 {[%clk 0:00:02]} 44. Kd5 {[%clk 0:00:05]}  Kf7 {[%clk 0:00:01]} 45. Kc6 {[%clk 0:00:05]}  Ke6 {[%clk 0:00:01]} 46. Kb7 {[%clk 0:00:06]}  Kf5 {[%clk 0:00:01]} 47. c6 {[%clk 0:00:06]}  Nc3 {[%clk 0:00:01]} 48. c7 {[%clk 0:00:07]}  Nd5 {[%clk 0:00:00]} 49. c8=Q+ {[%clk 0:00:07]} 1-0